bitfinex/quotes_SOLUSD_20250701
["timestamp","ask_amount","ask_price","bid_price","bid_amount"]
[1751331124662,0.1,154.66,154.65,56.22730801]
[1751331124861,0.1,154.66,154.65,30.22730801]
[1751331125857,0.1,154.66,154.65,56.52730801]
[1751331128294,0.1,154.66,154.65,53.4357476]
[1751331128474,0.1,154.66,154.65,56.52730801]
[1751331128872,0.1,154.68,154.67,47.88337084]
[1751331129058,0.1,154.68,154.67,48.16769398]
[1751331129265,0.1,154.68,154.67,74.46769398]
[1751331129888,0.1,154.68,154.67,80.93307188]
[1751331132657,0.1,154.68,154.67,87.30707188]
[1751331145286,0.1,154.68,154.67,80.91307188]
[1751331152469,0.1,154.73,154.72,18.64964886]
[1751331152670,0.1,154.73,154.72,22.16769398]
[1751331155195,0.1,154.73,154.72,28.6309825]
[1751331161783,0.1,154.73,154.72,40.99722414]
[1751331163076,0.1,154.73,154.72,46.12232838]
[1751331163277,6.5183,154.81,154.72,46.12232838]
[1751331163278,3.09156041,154.86,154.8,0.28432314]
[1751331163482,4.70676041,154.85,154.82,18.64964886]
[1751331163701,3.09156041,154.84,154.81,18.64964886]
[1751331164280,4.97902673,154.85,154.79,18.64964886]
[1751331164481,3.09156041,154.84,154.82,6.4591138]
[1751331164899,3.09156041,154.83,154.8,6.45994832]
[1751331165084,3.09156041,154.82,154.8,6.45994832]
[1751331165488,1.88746632,154.85,154.8,6.45994832]
[1751331165686,15.10537337,154.85,154.8,6.45994832]
[1751331165896,3.09156041,154.82,154.8,6.45994832]
[1751331167189,15.10537337,154.85,154.8,6.45994832]
[1751331167382,3.09156041,154.81,154.8,6.45994832]
[1751331167886,15.10537337,154.85,154.8,6.45994832]
[1751331168091,3.09156041,154.81,154.8,6.45994832]
[1751331168513,3.09156041,154.81,154.8,6.95994832]
[1751331168809,3.19156041,154.81,154.8,0.5]
[1751331170611,0.1,154.81,154.8,6.95994832]
[1751331171811,0.1,154.81,154.8,25.60959718]
[1751331173891,0.1,154.81,154.8,30.56272087]
[1751331175594,0.1,154.81,154.8,30.84704401]
[1751331176609,0.1,154.81,154.8,35.65800613]
[1751331181993,14.95422549,154.9,154.84,18.64964886]
[1751331182192,14.95422549,154.9,154.88,18.64964886]
[1751331183008,14.95422549,154.9,154.89,6.45619471]
[1751331183507,19.76518761,154.9,154.89,6.45619471]
[1751331183914,19.76518761,154.9,154.88,6.45648347]
[1751331184113,14.95422549,154.9,154.88,6.45648347]
[1751331184319,4.81096212,154.89,154.88,6.45648347]
[1751331184730,14.95422549,154.9,154.88,6.45648347]
[1751331185028,14.95422549,154.9,154.88,18.64964886]
[1751331185213,19.76518761,154.9,154.88,18.64964886]
[1751331185602,19.86518761,154.9,154.88,18.64964886]
[1751331187537,15.05422549,154.9,154.89,6.45619471]
[1751331188305,19.86518761,154.9,154.89,6.45619471]
[1751331188523,15.05422549,154.9,154.89,6.45619471]
[1751331188809,19.86518761,154.9,154.89,6.45619471]
[1751331189711,19.86518761,154.9,154.88,6.45661157]
[1751331190217,19.86518761,154.9,154.85,42.52580237]
[1751331190218,4.81096212,154.89,154.87,18.64964886]
[1751331191104,4.81096212,154.89,154.87,25.1065722]
[1751331191734,4.81096212,154.88,154.87,6.45692334]
[1751331192326,4.81096212,154.89,154.87,6.45692334]
[1751331192904,4.81096212,154.88,154.87,6.45692334]
[1751331193124,4.81096212,154.88,154.86,18.64964886]
[1751331196510,4.81096212,154.88,154.87,6.45702847]
[1751331197109,4.81096212,154.88,154.86,18.64964886]
[1751331197306,5.08322844,154.87,154.81,0.2]
[1751331197528,4.81096212,154.85,154.81,18.84964886]
[1751331198423,4.81096212,154.85,154.83,18.64964886]
[1751331198628,4.81096212,154.84,154.83,18.64964886]
[1751331198926,4.81096212,154.84,154.81,6.65936375]
[1751331199137,4.81096212,154.82,154.81,25.30901261]
[1751331199822,3.07926045,154.82,154.81,25.30901261]
[1751331200022,3.07926045,154.82,154.81,0.2]
[1751331201931,4.81236326,154.82,154.81,0.2]
[1751331202814,6.73101369,154.83,154.81,0.2]
[1751331203131,4.81236326,154.82,154.81,0.2]
[1751331203339,6.42196326,154.82,154.81,0.2]
[1751331204618,12.88107706,154.82,154.81,0.2]
[1751331204838,17.69344032,154.82,154.81,0.2]
[1751331205239,17.97776346,154.82,154.76,6.46155571]
[1751331205536,4.81236326,154.77,154.76,6.46155571]
[1751331206220,4.81236326,154.77,154.75,6.46203554]
[1751331207621,4.81236326,154.76,154.74,6.66230947]
[1751331207834,4.81236326,154.75,154.74,6.66230947]
[1751331208227,4.81236326,154.75,154.74,0.2]
[1751331208422,1.5987,154.76,154.74,6.66229416]
[1751331208623,4.81236326,154.75,154.74,6.66229416]
[1751331208837,4.81236326,154.75,154.74,0.2]
[1751331215058,1.87096632,154.76,154.74,0.2]
[1751331215236,4.81236326,154.75,154.74,0.2]
[1751331216352,1.87096632,154.76,154.74,0.2]
[1751331216536,4.81236326,154.75,154.74,0.2]
[1751331219056,11.2743988,154.75,154.74,0.2]
[1751331219569,11.55872194,154.75,154.74,0.2]
[1751331219950,11.55872194,154.75,154.67,0.2]
[1751331219951,4.81236326,154.69,154.67,6.66534898]
[1751331220150,4.81236326,154.68,154.67,6.66534898]
[1751331222186,7.47107223,154.71,154.67,6.66534898]
[1751331222493,4.81236326,154.68,154.67,6.66534898]
[1751331230183,7.19880591,154.71,154.68,18.64964886]
[1751331230394,4.81236326,154.69,154.68,18.64964886]
[1751331231993,4.81236326,154.69,154.68,6.46495991]
[1751331240497,4.81236326,154.69,154.68,25.11460877]
[1751331242685,4.81236326,154.7,154.68,25.11460877]
[1751331244804,7.19880591,154.71,154.69,18.64964886]
[1751331244994,7.19880591,154.71,154.7,23.60417369]
[1751331245397,7.19880591,154.71,154.7,18.79181043]
[1751331246412,7.19880591,154.71,154.7,25.25593454]
[1751331251216,7.19880591,154.71,154.7,30.0682978]
[1751331251598,0.27226632,154.76,154.7,46.22860807]
[1751331251800,4.81236326,154.74,154.72,18.64964886]
[1751331253109,4.81236326,154.74,154.73,6.4628708]
[1751331254494,4.91236326,154.74,154.72,6.46328852]
[1751331256918,0.1,154.74,154.73,4.81236326]
[1751331257110,0.1,154.74,154.73,23.60417369]
[1751331257641,0.1,154.74,154.73,76.12849683]
[1751331257832,0.1,154.74,154.73,74.39594134]
[1751331258032,0.1,154.74,154.73,48.39594134]
[1751331258837,0.1,154.74,154.73,54.85881214]
[1751331259834,0.1,154.74,154.73,56.59124373]
[1751331263240,0.1,154.74,154.73,82.59124373]
[1751331274067,0.1,154.74,154.73,77.49468123]
[1751331274364,0.1,154.74,154.73,56.06692059]
[1751331274567,0.1,154.74,154.73,82.28692059]
[1751331276559,0.1,154.74,154.73,77.47468123]
[1751331276738,0.1,154.74,154.73,82.28692059]
[1751331283851,0.1,154.74,154.73,80.55526422]
[1751331289563,0.1,154.74,154.73,54.83958736]
[1751331289752,0.1,154.74,154.73,56.40948736]
[1751331290257,0.1,154.81,154.78,0.14216157]
[1751331290461,0.1,154.81,154.8,21.73023185]
[1751331290757,0.1,154.81,154.8,18.64964886]
[1751331291137,0.1,154.81,154.8,21.73023185]
[1751331291565,0.1,154.81,154.8,25.10959718]
[1751331295061,0.1,154.81,154.8,29.9201719]
[1751331298677,0.1,154.81,154.75,6.46203554]
[1751331298965,4.81057472,154.79,154.75,22.61712439]
[1751331299170,4.81057472,154.79,154.76,18.64964886]
[1751331299352,4.81057472,154.8,154.76,18.64964886]
[1751331300776,4.81057472,154.8,154.77,6.46120049]
[1751331301160,4.81057472,154.79,154.76,6.46151335]
[1751331305270,4.91057472,154.79,154.76,6.46151335]
[1751331305582,4.81057472,154.78,154.76,6.46151335]
[1751331306482,4.81057472,154.77,154.75,6.46200125]
[1751331307569,4.81057472,154.78,154.75,6.46200125]
[1751331308464,4.91057472,154.79,154.75,6.46200125]
[1751331311370,4.91057472,154.79,154.76,18.64964886]
[1751331313309,4.91057472,154.79,154.77,6.46120049]
[1751331321800,3.18049273,154.79,154.77,6.46120049]
[1751331321993,3.18049273,154.79,154.76,25.11116011]
[1751331322205,3.08049273,154.78,154.76,25.11116011]
[1751331323698,3.08049273,154.78,154.75,6.46203554]
[1751331324004,3.08049273,154.77,154.75,6.46203554]
[1751331327401,3.08049273,154.78,154.75,6.46203554]
[1751331328603,0.37226632,154.79,154.75,6.46203554]
[1751331328779,3.08049273,154.78,154.75,6.46203554]
[1751331333625,0.1,154.79,154.75,6.46203554]
[1751331333787,3.08049273,154.78,154.75,6.46203554]
[1751331342018,3.08049273,154.77,154.75,6.46203554]
[1751331343117,3.35275905,154.76,154.74,6.46245314]
[1751331343313,3.08049273,154.75,154.74,6.46245314]
[1751331344018,3.08049273,154.75,154.73,6.46269827]
[1751331344317,3.08049273,154.74,154.73,6.46269827]
[1751331349502,3.08049273,154.75,154.73,6.46269827]
[1751331355649,0.27226632,154.78,154.74,18.64964886]
[1751331355813,3.08049273,154.78,154.74,18.64964886]
[1751331356012,3.35275905,154.78,154.74,18.64964886]
[1751331356938,3.08049273,154.78,154.74,18.64964886]
[1751331357742,3.08049273,154.78,154.75,6.46203554]
[1751331357942,3.08049273,154.77,154.75,6.46203554]
[1751331358120,3.08049273,154.78,154.75,6.46203554]
[1751331364041,3.08049273,154.77,154.75,6.46203554]
[1751331365141,3.08049273,154.78,154.75,6.46203554]
[1751331365439,3.08049273,154.78,154.75,22.61712439]
[1751331365645,0.1,154.79,154.77,3.08049273]
[1751331365830,0.1,154.79,154.78,3.08049273]
[1751331366021,0.1,154.79,154.78,35.54127577]
[1751331369753,0.1,154.79,154.78,32.46078304]
[1751331369920,0.1,154.79,154.78,35.54127577]
[1751331375334,0.1,154.79,154.78,6.46078304]
[1751331375536,3.18049273,154.79,154.73,6.4628708]
[1751331375751,3.08049273,154.75,154.73,6.4628708]
[1751331377840,4.81582613,154.75,154.73,6.4628708]
[1751331380554,4.81582613,154.76,154.73,6.4628708]
[1751331384646,4.81582613,154.76,154.73,22.62004781]
[1751331389954,7.09226632,154.79,154.74,18.64964886]
[1751331390160,4.81582613,154.78,154.74,18.64964886]
[1751331390470,4.81582613,154.78,154.75,6.46203554]
[1751331390865,11.90809245,154.79,154.75,22.61712439]
[1751331391271,0.1,154.76,154.75,41.26677325]
[1751331392070,0.1,154.76,154.75,6.46203554]
[1751331392248,4.91582613,154.76,154.74,6.46245314]
[1751331392968,5.08809245,154.75,154.73,6.46269442]
[1751331393139,4.81582613,154.74,154.73,6.46269442]
[1751331394265,4.81582613,154.75,154.73,6.46269442]
[1751331394470,0.1,154.76,154.73,6.46269442]
[1751331394669,0.1,154.76,154.74,18.64964886]
[1751331395162,0.1,154.76,154.74,23.46547499]
[1751331395566,0.1,154.76,154.75,23.46547499]
[1751331396356,0.1,154.76,154.75,29.92751053]
[1751331396567,0.1,154.76,154.75,25.1116844]
[1751331399871,0.1,154.76,154.75,29.92751053]
[1751331401255,0.1,154.76,154.75,30.0696721]
[1751331401664,0.1,154.76,154.75,56.55399524]
[1751331421593,0.1,154.76,154.75,30.35399524]
[1751331421895,0.1,154.76,154.75,56.53399524]
[1751331423277,0.1,154.76,154.75,30.35399524]
[1751331423483,0.1,154.76,154.75,56.53399524]
[1751331427791,0.1,154.76,154.75,54.79738881]
[1751331436709,0.1,154.76,154.75,54.65522724]
[1751331437506,0.1,154.76,154.75,54.79738881]
[1751331437807,0.1,154.76,154.75,51.71816911]
[1751331438012,0.1,154.76,154.75,54.79738881]
[1751331439217,0.1,154.76,154.75,51.71816911]
[1751331439506,0.1,154.76,154.75,54.79738881]
[1751331448728,0.1,154.79,154.78,44.64964886]
[1751331448945,0.1,154.79,154.78,74.1931917]
[1751331450529,0.1,154.79,154.78,80.65397474]
[1751331454123,0.1,154.79,154.78,80.51181317]
[1751331454320,0.1,154.79,154.78,54.33181317]
[1751331454519,0.1,154.79,154.78,80.51181317]
[1751331454839,0.1,154.79,154.78,28.1896516]
[1751331459138,0.1,154.79,154.78,25.25259347]
[1751331459329,0.1,154.79,154.78,28.33181317]
[1751331460323,0.1,154.79,154.78,25.1104319]
[1751331460519,0.1,154.79,154.78,51.1104319]
[1751331462617,0.1,154.79,154.78,54.1896516]
[1751331463342,0.1,154.79,154.78,54.33181317]
[1751331464042,0.1,154.79,154.78,80.51181317]
[1751331465536,0.1,154.79,154.78,80.79613631]
[1751331465717,0.1,154.79,154.78,77.71691661]
[1751331465920,0.1,154.79,154.78,82.52612856]
[1751331473955,0.1,154.79,154.78,82.24180542]
[1751331481068,0.1,154.79,154.78,77.71691661]
[1751331481357,0.1,154.79,154.78,82.52612856]
[1751331485859,0.1,154.79,154.78,80.79454954]
[1751331488140,0.1,154.79,154.78,54.61454954]
[1751331488347,0.1,154.79,154.78,80.77454954]
[1751331488948,0.1,154.79,154.78,80.34806483]
[1751331489469,0.1,154.79,154.78,80.4902264]
[1751331502260,0.1,154.79,154.78,80.77454954]
[1751331503881,0.1,154.79,154.78,54.77454954]
[1751331515674,0.1,154.81,154.8,44.933972]
[1751331515875,0.1,154.81,154.8,74.17160493]
[1751331518197,0.1,154.81,154.8,80.63155325]
[1751331520371,0.1,154.81,154.8,83.85134775]
[1751331520578,0.1,154.81,154.8,93.08424654]
[1751331527479,0.1,154.81,154.8,80.77371482]
[1751331527683,0.1,154.81,154.8,80.48939168]
[1751331528001,0.1,154.81,154.8,80.77371482]
[1751331528177,0.1,154.81,154.8,80.48939168]
[1751331528487,0.1,154.81,154.8,80.77371482]
[1751331535275,0.1,154.81,154.8,80.48939168]
[1751331536988,0.1,154.81,154.8,80.77371482]
[1751331538800,0.1,154.81,154.8,93.08424654]
[1751331539881,0.1,154.81,154.8,80.77371482]
[1751331548112,0.1,154.81,154.8,77.69608189]
[1751331548297,0.1,154.81,154.8,80.77371482]
[1751331550487,0.1,154.81,154.8,80.75371482]
[1751331556688,0.1,154.81,154.8,93.06424654]
[1751331558799,0.1,154.82,154.81,18.79181043]
[1751331559019,0.1,154.82,154.81,21.86944336]
[1751331560316,0.1,154.82,154.81,28.32897439]
[1751331568931,0.1,154.83,154.82,0.28432314]
[1751331569133,0.1,154.83,154.82,74.15160493]
[1751331569523,0.1,154.83,154.82,48.2937665]
[1751331571208,0.1,154.83,154.82,54.7528803]
[1751331578741,0.1,154.83,154.82,28.6128803]
[1751331578929,0.1,154.83,154.82,54.7328803]
[1751331579117,0.1,154.83,154.82,28.6128803]
[1751331579518,0.1,154.83,154.82,54.7328803]
[1751331583122,0.1,154.86,154.85,44.64964886]
[1751331583341,0.1,154.86,154.85,74.2737665]
[1751331583721,0.1,154.86,154.85,79.38041946]
[1751331584635,0.1,154.86,154.85,80.73162894]
[1751331591351,0.1,154.88,154.85,109.18681677]
[1751331591535,0.1,154.9,154.89,48.1537665]
[1751331591736,0.1,154.9,154.89,74.2737665]
[1751331592248,0.1,154.9,154.89,73.98944336]
[1751331593158,0.1,154.9,154.89,80.44563807]
[1751331594435,0.1,154.9,154.89,80.72996121]
[1751331599252,0.1,154.9,154.89,77.65232828]
[1751331599456,0.1,154.9,154.89,80.72996121]
[1751331605264,0.1,154.97,154.94,18.64964886]
[1751331605566,0.1,154.97,154.96,3.2197945]
[1751331605762,0.1,154.97,154.96,6.59543983]
[1751331605947,0.1,154.97,154.96,25.10292712]
[1751331606144,3.17763293,154.97,154.94,6.45411126]
[1751331606341,1.5525,154.94,154.86,6.45744543]
[1751331606540,3.07763293,154.91,154.86,6.45744543]
[1751331606747,3.07763293,154.91,154.86,9.53507836]
[1751331606953,3.07763293,154.91,154.87,18.64964886]
[1751331607864,3.07763293,154.91,154.89,18.64964886]
[1751331608943,3.07763293,154.91,154.88,18.64964886]
[1751331609966,4.80559596,154.91,154.88,18.64964886]
[1751331610964,4.80559596,154.91,154.89,6.45619471]
[1751331611170,1.82476632,154.94,154.89,6.45619471]
[1751331611357,4.80559596,154.93,154.89,6.45619471]
[1751331611667,0.27226632,154.92,154.89,6.45619471]
[1751331611962,5.07786228,154.92,154.89,6.45619471]
[1751331612571,4.80559596,154.91,154.89,6.45619471]
[1751331615749,4.80559596,154.92,154.89,6.45619471]
[1751331616583,0.27226632,154.93,154.89,6.45619471]
[1751331616868,4.80559596,154.91,154.89,6.45619471]
[1751331617548,5.07786228,154.9,154.86,25.10709429]
[1751331617758,4.80559596,154.88,154.86,25.10709429]
[1751331620679,1.82396632,154.93,154.87,23.45524482]
[1751331620977,4.80559596,154.91,154.87,23.45524482]
[1751331621284,4.80559596,154.92,154.87,23.45524482]
[1751331621476,0.27226632,154.91,154.87,23.45524482]
[1751331621680,0.27226632,154.91,154.88,6.45661157]
[1751331622776,5.07786228,154.91,154.88,6.45661157]
[1751331624173,6.62956228,154.93,154.89,18.64964886]
[1751331624760,6.62956228,154.93,154.89,23.45524482]
[1751331626286,0.27226632,154.93,154.91,18.64964886]
[1751331626488,4.80559596,154.94,154.91,18.64964886]
[1751331626795,6.72039364,154.94,154.91,18.64964886]
[1751331628077,6.72039364,154.94,154.92,6.45494448]
[1751331628769,11.5259896,154.94,154.92,6.45494448]
[1751331629392,4.80559596,154.93,154.92,6.45494448]
[1751331630069,11.5259896,154.94,154.92,6.45494448]
[1751331633500,4.80559596,154.93,154.92,6.45494448]
[1751331634384,6.72039364,154.94,154.92,6.45494448]
[1751331634600,11.5259896,154.94,154.92,6.45494448]
[1751331637884,4.80559596,154.93,154.92,6.45494448]
[1751331639892,3.07467993,154.93,154.92,6.45494448]
[1751331643102,3.34694625,154.93,154.92,6.45494448]
[1751331643699,3.34694625,154.93,154.88,18.64964886]
[1751331643908,3.07467993,154.9,154.88,18.64964886]
[1751331644095,3.07467993,154.89,154.88,25.10626043]
[1751331644287,0.27226632,154.93,154.88,6.45661157]
[1751331644487,3.07467993,154.9,154.88,6.45661157]
[1751331644886,3.07467993,154.89,154.88,6.45661157]
[1751331645502,3.07467993,154.89,154.87,16.14161364]
[1751331645805,4.80656246,154.89,154.87,16.14161364]
[1751331646287,4.80656246,154.9,154.87,16.14161364]
[1751331647811,0.27226632,154.93,154.88,18.64964886]
[1751331647991,4.80656246,154.92,154.88,18.64964886]
[1751331649588,7.09265996,154.94,154.88,23.45621132]
[1751331649803,11.89922242,154.94,154.91,6.45536117]
[1751331650009,4.80656246,154.93,154.91,6.45536117]
[1751331650404,11.89922242,154.94,154.91,6.45536117]
[1751331652006,4.80656246,154.93,154.9,6.45577792]
[1751331652188,4.80656246,154.93,154.9,25.10542678]
[1751331652496,11.89922242,154.94,154.9,25.10542678]
[1751331653010,4.80656246,154.93,154.9,25.10542678]
[1751331656811,4.80656246,154.92,154.9,25.10542678]
[1751331658605,4.90656246,154.93,154.9,25.10542678]
[1751331661425,0.1,154.93,154.9,25.10542678]
[1751331661626,4.90656246,154.93,154.9,25.10542678]
[1751331661928,4.80656246,154.92,154.9,25.10542678]
[1751331662525,4.80656246,154.91,154.9,6.45577792]
[1751331663526,4.90656246,154.93,154.9,6.45577792]
[1751331663710,4.90656246,154.93,154.91,18.64964886]
[1751331663711,0.1,154.93,154.91,18.64964886]
[1751331666016,0.1,154.93,154.92,6.45494448]
[1751331667534,4.90656246,154.93,154.92,6.45494448]
[1751331668025,5.17882878,154.93,154.92,6.45494448]
[1751331669524,5.17882878,154.93,154.9,16.1394448]
[1751331670809,4.90656246,154.93,154.9,16.1394448]
[1751331671330,4.90656246,154.93,154.91,18.64964886]
[1751331671842,4.90656246,154.93,154.92,6.45494448]
[1751331674241,0.1,154.93,154.92,6.45494448]
[1751331677239,4.90656246,154.93,154.92,6.45494448]
[1751331677851,0.1,154.93,154.89,6.45619471]
[1751331678009,0.27226632,154.92,154.89,6.45619471]
[1751331678725,3.07506093,154.9,154.89,6.45619471]
[1751331679733,0.37226632,154.93,154.89,6.45619471]
[1751331679938,4.80556869,154.91,154.89,6.45619471]
[1751331683039,0.37226632,154.93,154.88,0.2]
[1751331683040,5.07783501,154.9,154.88,0.2]
[1751331683237,4.80556869,154.89,154.88,6.65661157]
[1751331683621,4.80556869,154.89,154.88,0.2]
[1751331685323,9.8834037,154.89,154.88,0.2]
[1751331685621,5.07783501,154.89,154.88,0.2]
[1751331686024,0.27226632,154.89,154.88,0.2]
[1751331686221,4.80077025,154.9,154.88,6.65661157]
[1751331686222,4.80556869,154.9,154.88,6.65661157]
[1751331686423,5.07783501,154.9,154.88,6.65661157]
[1751331687342,4.80556869,154.9,154.88,6.65661157]
[1751331688046,4.80556869,154.89,154.88,6.65661157]
[1751331688346,0.27226632,154.91,154.88,6.65661157]
[1751331688644,4.80556869,154.89,154.88,6.65661157]
[1751331689430,4.80556869,154.89,154.88,0.2]
[1751331689748,0.27226632,154.91,154.88,0.2]
[1751331689933,4.80556869,154.89,154.88,0.2]
[1751331690320,5.07783501,154.89,154.88,0.2]
[1751331690521,11.53402972,154.89,154.88,0.2]
[1751331690934,5.07783501,154.89,154.88,0.2]
[1751331691248,11.53402972,154.89,154.88,0.2]
[1751331695653,5.07783501,154.89,154.88,0.2]
[1751331697061,11.53402972,154.89,154.88,0.2]
[1751331698652,16.62392155,154.89,154.88,0.2]
[1751331699953,5.07783501,154.89,154.88,0.2]
[1751331700146,11.53402972,154.89,154.88,0.2]
[1751331700341,5.07783501,154.89,154.88,0.2]
[1751331702938,11.53402972,154.89,154.88,0.2]
[1751331703238,5.07783501,154.89,154.88,0.2]
[1751331703644,16.33959841,154.89,154.88,0.2]
[1751331704956,11.53402972,154.89,154.88,0.2]
[1751331710164,11.81835286,154.89,154.88,0.2]
[1751331712247,16.62392155,154.89,154.88,0.2]
[1751331717270,11.81835286,154.89,154.88,0.2]
[1751331718663,0.1,154.9,154.88,6.65661157]
[1751331718884,0.1,154.9,154.89,18.64964886]
[1751331719205,0.1,154.9,154.89,25.08801755]
[1751331719861,0.1,154.9,154.89,31.13591755]
[1751331720573,0.1,154.9,154.89,37.59211226]
[1751331720762,0.1,154.9,154.89,37.73427383]
[1751331721745,0.1,154.9,154.89,32.92870514]
[1751331721945,0.1,154.9,154.89,37.73427383]
[1751331724948,0.1,154.9,154.89,32.78654357]
[1751331734970,0.1,154.9,154.89,26.73864357]
[1751331735481,0.1,154.9,154.89,25.10584357]
[1751331735674,4.90556869,154.9,154.89,25.10584357]
[1751331737482,4.90556869,154.9,154.88,0.2]
[1751331737699,5.07783501,154.89,154.88,0.2]
[1751331739684,10.16772684,154.89,154.88,0.2]
[1751331740385,5.07783501,154.89,154.88,0.2]
[1751331744703,10.16772684,154.89,154.88,0.2]
[1751331745876,5.36215815,154.89,154.88,0.2]
[1751331746778,11.81835286,154.89,154.88,0.2]
[1751331746977,5.36215815,154.89,154.88,0.2]
[1751331748887,11.81835286,154.89,154.88,0.2]
[1751331749085,5.36215815,154.89,154.88,0.2]
[1751331750179,5.07783501,154.89,154.88,0.2]
[1751331750374,36.42723875,154.89,154.88,0.2]
[1751331753196,47.97332529,154.89,154.88,0.2]
[1751331753408,0.28432314,154.88,154.82,0.2]
[1751331753605,4.80556869,154.83,154.82,6.6591138]
[1751331756905,4.80556869,154.83,154.82,0.2]
[1751331758178,4.80556869,154.83,154.82,6.6591138]
[1751331760205,4.80556869,154.83,154.82,0.2]
[1751331762205,0.27226632,154.85,154.82,6.6591138]
[1751331762386,4.80556869,154.83,154.82,6.6591138]
[1751331763683,0.27226632,154.85,154.82,6.6591138]
[1751331763896,4.80556869,154.83,154.82,6.6591138]
[1751331764092,4.80556869,154.84,154.82,6.6591138]
[1751331764300,4.80556869,154.85,154.82,41.45654718]
[1751331765700,4.80556869,154.86,154.82,41.45654718]
[1751331765899,0.27226632,154.87,154.83,23.45521755]
[1751331766091,5.44940374,154.89,154.85,18.64964886]
[1751331766092,10.52723875,154.89,154.85,18.64964886]
[1751331766616,10.25497243,154.89,154.85,18.64964886]
[1751331767622,10.25497243,154.89,154.86,6.45744543]
[1751331768108,5.44940374,154.89,154.87,18.64964886]
[1751331769292,5.44940374,154.89,154.87,23.45521755]
[1751331769788,5.44940374,154.89,154.88,29.91182912]
[1751331770806,5.44940374,154.89,154.88,25.10626043]
[1751331771490,5.44940374,154.89,154.86,1.5077]
[1751331771491,10.25497243,154.89,154.86,1.5077]
[1751331771692,4.80556869,154.88,154.86,6.45733821]
[1751331772007,4.80556869,154.87,154.84,25.10753082]
[1751331774712,4.80556869,154.85,154.82,6.65875003]
[1751331774886,4.80556869,154.84,154.82,25.30839889]
[1751331776489,4.80556869,154.83,154.82,25.30839889]
[1751331777793,4.80556869,154.83,154.82,6.65875003]
[1751331778711,4.80556869,154.83,154.82,0.2]
[1751331779894,5.07783501,154.83,154.82,0.2]
[1751331783784,4.80556869,154.83,154.82,0.2]
[1751331787898,4.80556869,154.83,154.82,6.6591138]
[1751331788210,4.80556869,154.84,154.82,6.6591138]
[1751331788398,11.48556869,154.87,154.83,18.64964886]
[1751331788806,4.80556869,154.86,154.83,18.64964886]
[1751331789394,4.80556869,154.85,154.82,22.80689832]
[1751331789601,4.80556869,154.85,154.82,6.6591138]
[1751331790024,4.80556869,154.84,154.82,6.6591138]
[1751331790319,0.27226632,154.86,154.82,6.6591138]
[1751331790506,4.80556869,154.85,154.82,6.6591138]
[1751331791108,4.80556869,154.84,154.82,6.6591138]
[1751331792020,4.80556869,154.85,154.82,6.6591138]
[1751331793025,0.27226632,154.86,154.82,6.6591138]
[1751331793322,4.80556869,154.85,154.82,6.6591138]
[1751331794018,4.80556869,154.83,154.82,0.2]
[1751331795414,5.07783501,154.83,154.82,0.2]
[1751331796423,4.80556869,154.83,154.82,0.2]
[1751331797703,5.07783501,154.83,154.82,0.2]
[1751331798827,4.80556869,154.83,154.82,0.2]
[1751331801766,0.27226632,154.86,154.82,6.6591138]
[1751331802026,5.07783501,154.86,154.82,11.46468249]
[1751331802824,4.80556869,154.83,154.82,0.2]
[1751331803418,5.07783501,154.83,154.82,0.2]
[1751331803633,4.80556869,154.83,154.82,0.2]
[1751331817018,0.27226632,154.86,154.83,18.64964886]
[1751331817216,4.87731718,154.88,154.85,18.64964886]
[1751331817530,0.1,154.88,154.87,23.45521755]
[1751331818628,0.1,154.88,154.87,29.91224602]
[1751331819942,0.1,154.88,154.87,25.10667733]
[1751331820118,0.1,154.88,154.87,29.91224602]
[1751331821545,0.1,154.88,154.87,25.10667733]
[1751331827446,4.90556869,154.88,154.86,18.64964886]
[1751331827621,4.90556869,154.88,154.85,18.64964886]
[1751331828442,4.80556869,154.87,154.85,18.64964886]
[1751331829033,4.80556869,154.86,154.83,6.45869663]
[1751331829239,4.80556869,154.85,154.84,18.64964886]
[1751331829751,4.80556869,154.85,154.83,6.45869663]
[1751331831930,0.37226632,154.88,154.82,0.2]
[1751331831931,5.07783501,154.84,154.82,0.2]
[1751331832248,4.80556869,154.83,154.82,0.2]
[1751331833429,0.27226632,154.85,154.82,0.2]
[1751331833752,4.80556869,154.83,154.82,0.2]
[1751331837650,37.26426532,154.83,154.82,0.2]